[Event "*** Titled Tuesday Blitz"]
[Site "Chess.com"]
[Date "2018.11.06"]
[Round "6"]
[White "Quiet_Desperation"]
[Black "Mbneu"]
[Result "1-0"]
[WhiteElo "2335"]
[BlackElo "2271"]
[TimeControl "180+2"]
[EndTime "14:19:24 PST"]
[Termination "Quiet_Desperation won by resignation"]

1. e4 {[%clk 0:03:01.9]} 1... c5 {[%clk 0:02:58]} 2. d4 {[%clk 0:03:01]} 2...
cxd4 {[%clk 0:02:56.9]} 3. c3 {[%clk 0:03:02.2]} 3... Nf6 {[%clk 0:02:56.1]} 4.
e5 {[%clk 0:03:02.8]} 4... Nd5 {[%clk 0:02:56.6]} 5. Nf3 {[%clk 0:03:04.1]} 5...
Nc6 {[%clk 0:02:55]} 6. Bc4 {[%clk 0:03:03.9]} 6... Nb6 {[%clk 0:02:55.4]} 7.
Bb3 {[%clk 0:03:04.6]} 7... d5 {[%clk 0:02:56]} 8. cxd4 {[%clk 0:03:04.8]} 8...
Bf5 {[%clk 0:02:45.3]} 9. Be3 {[%clk 0:03:05.5]} 9... e6 {[%clk 0:02:45]} 10.
O-O {[%clk 0:03:04.4]} 10... Be7 {[%clk 0:02:42.9]} 11. h3 {[%clk 0:03:05.6]}
11... O-O {[%clk 0:02:42.2]} 12. Nc3 {[%clk 0:03:06.5]} 12... Na5 {[%clk
0:02:42.7]} 13. Bc2 {[%clk 0:03:06.5]} 13... Bxc2 {[%clk 0:02:42]} 14. Qxc2
{[%clk 0:03:08.4]} 14... Rc8 {[%clk 0:02:41.9]} 15. Rac1 {[%clk 0:02:55]} 15...
Nbc4 {[%clk 0:02:41.3]} 16. Nd2 {[%clk 0:02:43.1]} 16... f5 {[%clk 0:02:39.2]}
17. Nxc4 {[%clk 0:02:42.9]} 17... Nxc4 {[%clk 0:02:36.6]} 18. b3 {[%clk
0:02:40]} 18... Na3 {[%clk 0:02:24.4]} 19. Qb2 {[%clk 0:02:36.6]} 19... f4
{[%clk 0:02:11.1]} 20. Bd2 {[%clk 0:02:37]} 20... f3 {[%clk 0:02:11.3]} 21. g3
{[%clk 0:02:32.5]} 21... Qe8 {[%clk 0:02:07.8]} 22. Na4 {[%clk 0:02:25.6]} 22...
Qh5 {[%clk 0:01:56.6]} 23. Kh2 {[%clk 0:02:25.4]} 23... Nb5 {[%clk 0:01:48.3]}
24. Nc5 {[%clk 0:02:22.7]} 24... Bxc5 {[%clk 0:01:13.6]} 25. Rxc5 {[%clk
0:02:12.6]} 25... Rxc5 {[%clk 0:01:03.7]} 26. dxc5 {[%clk 0:02:14.5]} 26... a6
{[%clk 0:00:32.7]} 27. a4 {[%clk 0:02:14.7]} 27... Na7 {[%clk 0:00:33.5]} 28. b4
{[%clk 0:02:15.5]} 28... Nc6 {[%clk 0:00:34]} 29. Bc3 {[%clk 0:02:08.7]} 29...
d4 {[%clk 0:00:28.4]} 30. Bxd4 {[%clk 0:02:08.7]} 30... Rd8 {[%clk 0:00:29.1]}
31. Bc3 {[%clk 0:01:58.9]} 31... Rd3 {[%clk 0:00:27.3]} 32. b5 {[%clk 0:01:57]}
32... axb5 {[%clk 0:00:28.1]} 33. axb5 {[%clk 0:01:58.1]} 33... Ne7 {[%clk
0:00:28.4]} 34. c6 {[%clk 0:01:49.2]} 34... bxc6 {[%clk 0:00:20.4]} 35. b6
{[%clk 0:01:50.5]} 35... Qe8 {[%clk 0:00:20.5]} 36. b7 {[%clk 0:01:45.2]} 36...
Qb8 {[%clk 0:00:21.1]} 37. Ra1 {[%clk 0:01:46.3]} 37... Rxc3 {[%clk 0:00:12.9]}
38. Ra8 {[%clk 0:01:43.7]} 1-0

[Event "*** Titled Tuesday Blitz"]
[Site "Chess.com"]
[Date "2018.11.06"]
[Round "6"]
[White "Jenia84"]
[Black "alishersuleymenov"]
[Result "1-0"]
[WhiteElo "2253"]
[BlackElo "2467"]
[TimeControl "180+2"]
[EndTime "14:20:02 PST"]
[Termination "Jenia84 won by resignation"]

1. d4 {[%clk 0:03:01.2]} 1... Nf6 {[%clk 0:02:59.1]} 2. Bf4 {[%clk 0:02:56.7]}
2... g6 {[%clk 0:02:58.7]} 3. e3 {[%clk 0:02:55.4]} 3... Bg7 {[%clk 0:02:58.6]}
4. Nc3 {[%clk 0:02:42.6]} 4... c5 {[%clk 0:02:51.9]} 5. Nf3 {[%clk 0:02:40.1]}
5... O-O {[%clk 0:02:50.2]} 6. Qd2 {[%clk 0:02:37.6]} 6... b6 {[%clk 0:02:36.8]}
7. h4 {[%clk 0:02:37.7]} 7... Bb7 {[%clk 0:02:35.2]} 8. Be2 {[%clk 0:02:34.8]}
8... d6 {[%clk 0:02:26.1]} 9. O-O-O {[%clk 0:02:34.5]} 9... Nbd7 {[%clk
0:02:15.1]} 10. Rdg1 {[%clk 0:02:22.7]} 10... a6 {[%clk 0:02:01.2]} 11. g4
{[%clk 0:02:23.5]} 11... b5 {[%clk 0:02:02.7]} 12. g5 {[%clk 0:02:12.4]} 12...
b4 {[%clk 0:02:03.8]} 13. gxf6 {[%clk 0:02:12]} 13... bxc3 {[%clk 0:02:04.5]}
14. Qxc3 {[%clk 0:02:08.3]} 14... Nxf6 {[%clk 0:02:05.3]} 15. h5 {[%clk
0:02:06.5]} 15... Ne4 {[%clk 0:02:05.3]} 16. Qe1 {[%clk 0:02:03.7]} 16... Rc8
{[%clk 0:01:49.8]} 17. Rh3 {[%clk 0:01:45.7]} 17... Qb6 {[%clk 0:01:43.3]} 18.
hxg6 {[%clk 0:01:29.9]} 18... fxg6 {[%clk 0:01:44.2]} 19. Bh6 {[%clk 0:01:23.7]}
19... cxd4 {[%clk 0:01:27]} 20. Bxg7 {[%clk 0:01:20.6]} 20... Kxg7 {[%clk
0:01:25.3]} 21. Nxd4 {[%clk 0:01:19.7]} 21... Rxf2 {[%clk 0:01:10.1]} 22. Bd3
{[%clk 0:01:13]} 22... Rf6 {[%clk 0:00:44.5]} 23. Qh4 {[%clk 0:01:01.5]} 23...
Rh8 {[%clk 0:00:40.4]} 24. Bxe4 {[%clk 0:00:49.4]} 24... Bxe4 {[%clk 0:00:41.2]}
25. Qxe4 {[%clk 0:00:49.8]} 25... e5 {[%clk 0:00:43.1]} 26. Nf5+ {[%clk
0:00:43.4]} 26... Kf8 {[%clk 0:00:43.3]} 27. Qa8+ {[%clk 0:00:34.7]} 27... Kf7
{[%clk 0:00:44.6]} 28. Qxh8 {[%clk 0:00:35.2]} 28... h5 {[%clk 0:00:38.5]} 29.
Qg7+ {[%clk 0:00:28.6]} 29... Ke6 {[%clk 0:00:39.6]} 30. Rxg6 {[%clk 0:00:29.5]}
30... Qd8 {[%clk 0:00:34.8]} 31. Rxf6+ {[%clk 0:00:29.7]} 31... Qxf6 {[%clk
0:00:36.7]} 32. Qxf6+ {[%clk 0:00:30.1]} 32... Kxf6 {[%clk 0:00:38.6]} 33. Rxh5
{[%clk 0:00:31.1]} 1-0

[Event "*** Titled Tuesday Blitz"]
[Site "Chess.com"]
[Date "2018.11.06"]
[Round "6"]
[White "enriquetejedor"]
[Black "hypert"]
[Result "1-0"]
[WhiteElo "2496"]
[BlackElo "2371"]
[TimeControl "180+2"]
[EndTime "14:20:06 PST"]
[Termination "enriquetejedor won by resignation"]

1. d4 {[%clk 0:03:00.7]} 1... Nf6 {[%clk 0:03:00.9]} 2. c4 {[%clk 0:03:01.6]}
2... d6 {[%clk 0:02:59]} 3. Nc3 {[%clk 0:03:02.5]} 3... Nbd7 {[%clk 0:03:00.7]}
4. g3 {[%clk 0:03:00.2]} 4... e5 {[%clk 0:03:02.1]} 5. Bg2 {[%clk 0:03:01.3]}
5... exd4 {[%clk 0:02:59.2]} 6. Qxd4 {[%clk 0:03:01.8]} 6... g6 {[%clk
0:03:00.1]} 7. b3 {[%clk 0:03:01.9]} 7... Bg7 {[%clk 0:03:01.4]} 8. Bb2 {[%clk
0:03:03.6]} 8... O-O {[%clk 0:03:02.6]} 9. Nf3 {[%clk 0:03:04.8]} 9... Re8
{[%clk 0:03:03.2]} 10. O-O {[%clk 0:03:06]} 10... Ne4 {[%clk 0:02:56.4]} 11.
Qxg7+ {[%clk 0:02:25.1]} 11... Kxg7 {[%clk 0:02:56.9]} 12. Nxe4+ {[%clk
0:02:26.4]} 12... f6 {[%clk 0:02:57.6]} 13. Nd4 {[%clk 0:02:25.9]} 13... Nc5
{[%clk 0:02:29.1]} 14. Nc3 {[%clk 0:02:26.4]} 14... a5 {[%clk 0:02:21.2]} 15.
Rad1 {[%clk 0:02:22.4]} 15... c6 {[%clk 0:02:21.1]} 16. Rd2 {[%clk 0:02:22.6]}
16... Qe7 {[%clk 0:02:20]} 17. Rfd1 {[%clk 0:02:23.3]} 17... Rd8 {[%clk
0:02:17.7]} 18. Nc2 {[%clk 0:02:19.1]} 18... Bf5 {[%clk 0:02:16.1]} 19. Ne3
{[%clk 0:02:19.8]} 19... Be6 {[%clk 0:02:09.7]} 20. h3 {[%clk 0:02:18.3]} 20...
Rd7 {[%clk 0:02:08.2]} 21. Kh2 {[%clk 0:02:18.6]} 21... Rad8 {[%clk 0:02:08.9]}
22. Ba3 {[%clk 0:02:20.2]} 22... Bf7 {[%clk 0:02:07.9]} 23. Bb2 {[%clk
0:01:52.4]} 23... h5 {[%clk 0:02:02.1]} 24. h4 {[%clk 0:01:48.7]} 24... Be6
{[%clk 0:02:01.5]} 25. Nc2 {[%clk 0:01:45.7]} 25... Bf5 {[%clk 0:02:02]} 26. Nd4
{[%clk 0:01:46.2]} 26... Be4 {[%clk 0:01:59.2]} 27. f3 {[%clk 0:01:37.8]} 27...
Bf5 {[%clk 0:02:00.3]} 28. e4 {[%clk 0:01:39]} 28... Be6 {[%clk 0:02:01.2]} 29.
Nde2 {[%clk 0:01:39.8]} 29... Bf7 {[%clk 0:02:01.2]} 30. Nf4 {[%clk 0:01:38.5]}
30... a4 {[%clk 0:01:55.3]} 31. b4 {[%clk 0:01:34.3]} 31... Na6 {[%clk
0:01:56.1]} 32. Nxa4 {[%clk 0:01:14.3]} 32... Bxc4 {[%clk 0:01:50.6]} 33. Nb6
{[%clk 0:01:14.6]} 33... Bxa2 {[%clk 0:01:47.7]} 34. Nxd7 {[%clk 0:01:13.5]}
34... Rxd7 {[%clk 0:01:49.6]} 35. Bh3 {[%clk 0:01:07.4]} 35... Rd8 {[%clk
0:01:49.6]} 36. b5 {[%clk 0:01:00.5]} 36... Nc5 {[%clk 0:01:41.4]} 37. bxc6
{[%clk 0:00:59.3]} 37... bxc6 {[%clk 0:01:42.1]} 38. Ba3 {[%clk 0:01:00.5]}
38... Nb7 {[%clk 0:01:41.4]} 39. Rxa2 {[%clk 0:00:58.8]} 39... Ra8 {[%clk
0:01:17.1]} 40. Rda1 {[%clk 0:00:55.7]} 40... Nc5 {[%clk 0:01:11.6]} 41. Bxc5
{[%clk 0:00:55.4]} 41... Rxa2+ {[%clk 0:01:12.2]} 42. Rxa2 {[%clk 0:00:57.3]}
42... dxc5 {[%clk 0:01:13.5]} 43. Rc2 {[%clk 0:00:57.6]} 43... Qd6 {[%clk
0:01:07.7]} 44. Rxc5 {[%clk 0:00:56.8]} 44... Qd2+ {[%clk 0:01:07.5]} 45. Bg2
{[%clk 0:00:57.5]} 45... g5 {[%clk 0:01:08.2]} 46. hxg5 {[%clk 0:00:57.9]} 46...
fxg5 {[%clk 0:01:09.5]} 47. Rxg5+ {[%clk 0:00:59.2]} 47... Kf6 {[%clk
0:01:10.8]} 48. Rxh5 {[%clk 0:01:00]} 48... Qf2 {[%clk 0:01:09.7]} 49. Rh6+
{[%clk 0:01:00.4]} 49... Ke5 {[%clk 0:01:09.1]} 50. Nd3+ {[%clk 0:01:01.2]} 1-0

[Event "*** Titled Tuesday Blitz"]
[Site "Chess.com"]
[Date "2018.11.06"]
[Round "6"]
[White "Vrolijk"]
[Black "RichardLeyvaP"]
[Result "0-1"]
[WhiteElo "2642"]
[BlackElo "2476"]
[TimeControl "180+2"]
[EndTime "14:20:06 PST"]
[Termination "RichardLeyvaP won by resignation"]

1. Nf3 {[%clk 0:03:01.9]} 1... Nf6 {[%clk 0:02:59]} 2. c4 {[%clk 0:03:00.8]}
2... g6 {[%clk 0:02:57.2]} 3. Nc3 {[%clk 0:03:01.4]} 3... Bg7 {[%clk 0:02:55.6]}
4. e4 {[%clk 0:03:01.8]} 4... d6 {[%clk 0:02:48.5]} 5. d4 {[%clk 0:03:00.8]}
5... O-O {[%clk 0:02:49.5]} 6. Be2 {[%clk 0:03:02.3]} 6... e5 {[%clk 0:02:44.7]}
7. d5 {[%clk 0:03:02.9]} 7... a5 {[%clk 0:02:38.3]} 8. Bg5 {[%clk 0:03:01.4]}
8... h6 {[%clk 0:02:39.3]} 9. Bh4 {[%clk 0:03:02]} 9... Na6 {[%clk 0:02:30.9]}
10. Nd2 {[%clk 0:03:01]} 10... Bd7 {[%clk 0:02:30.6]} 11. O-O {[%clk 0:03:00.3]}
11... h5 {[%clk 0:02:00.2]} 12. a3 {[%clk 0:02:57.6]} 12... Bh6 {[%clk
0:01:55.7]} 13. f3 {[%clk 0:02:55.7]} 13... a4 {[%clk 0:01:30.6]} 14. Kh1 {[%clk
0:02:48.8]} 14... Nc5 {[%clk 0:01:16.5]} 15. Qc2 {[%clk 0:02:41.7]} 15... Bxd2
{[%clk 0:00:53.4]} 16. Qxd2 {[%clk 0:02:39]} 16... Nfxe4 {[%clk 0:00:54.2]} 17.
Bxd8 {[%clk 0:02:19.9]} 17... Nxd2 {[%clk 0:00:48.7]} 18. Bxc7 {[%clk
0:02:20.8]} 18... Nxf1 {[%clk 0:00:49.6]} 19. Rxf1 {[%clk 0:02:17.4]} 19... Ra6
{[%clk 0:00:44.5]} 20. Nb5 {[%clk 0:02:12.6]} 20... Rc8 {[%clk 0:00:45.2]} 21.
Kg1 {[%clk 0:01:48.7]} 21... Nb3 {[%clk 0:00:46]} 22. c5 {[%clk 0:01:39.9]}
22... Bxb5 {[%clk 0:00:40.3]} 23. cxd6 {[%clk 0:01:28.8]} 23... Bxe2 {[%clk
0:00:33.8]} 24. d7 {[%clk 0:01:28.7]} 24... Raa8 {[%clk 0:00:35.1]} 25. dxc8=Q+
{[%clk 0:01:26.9]} 25... Rxc8 {[%clk 0:00:35.5]} 26. d6 {[%clk 0:01:21.2]} 26...
Bb5 {[%clk 0:00:22.1]} 27. Re1 {[%clk 0:01:22]} 27... f6 {[%clk 0:00:22.5]} 28.
f4 {[%clk 0:01:23.5]} 28... Re8 {[%clk 0:00:12.4]} 29. fxe5 {[%clk 0:01:24.6]}
29... Rxe5 {[%clk 0:00:13.6]} 30. Rd1 {[%clk 0:01:25.1]} 30... Bd7 {[%clk
0:00:12.8]} 31. h3 {[%clk 0:01:22.9]} 31... Kf7 {[%clk 0:00:13.7]} 32. Rd3
{[%clk 0:01:21]} 32... h4 {[%clk 0:00:14.6]} 33. Rc3 {[%clk 0:01:20]} 33... g5
{[%clk 0:00:15.7]} 34. Bd8 {[%clk 0:01:20.3]} 34... Rd5 {[%clk 0:00:16.1]} 35.
Be7 {[%clk 0:01:20.8]} 35... Rd1+ {[%clk 0:00:16.6]} 36. Kf2 {[%clk 0:01:21.1]}
36... Bc6 {[%clk 0:00:17.7]} 37. g3 {[%clk 0:01:16.9]} 37... Rd2+ {[%clk
0:00:18.3]} 38. Ke3 {[%clk 0:01:17.7]} 38... hxg3 {[%clk 0:00:19.3]} 39. Rc1
{[%clk 0:01:09.5]} 39... Nxc1 {[%clk 0:00:19.4]} 0-1

[Event "*** Titled Tuesday Blitz"]
[Site "Chess.com"]
[Date "2018.11.06"]
[Round "6"]
[White "mc4chess"]
[Black "SaraciNderim"]
[Result "1-0"]
[WhiteElo "2488"]
[BlackElo "2656"]
[TimeControl "180+2"]
[EndTime "14:20:19 PST"]
[Termination "mc4chess won by resignation"]

1. Nf3 {[%clk 0:03:01.9]} 1... d6 {[%clk 0:02:50.4]} 2. c4 {[%clk 0:03:02.1]}
2... e5 {[%clk 0:02:49.8]} 3. d3 {[%clk 0:03:02.6]} 3... f5 {[%clk 0:02:45.6]}
4. g3 {[%clk 0:03:03.6]} 4... Nf6 {[%clk 0:02:46.5]} 5. Bg2 {[%clk 0:03:04.9]}
5... g6 {[%clk 0:02:47.9]} 6. O-O {[%clk 0:03:06]} 6... Bg7 {[%clk 0:02:49.3]}
7. Nc3 {[%clk 0:03:07.5]} 7... O-O {[%clk 0:02:50.3]} 8. Rb1 {[%clk 0:03:07.6]}
8... a5 {[%clk 0:02:51.1]} 9. a3 {[%clk 0:03:08.5]} 9... Qe8 {[%clk 0:02:51.5]}
10. b4 {[%clk 0:02:59]} 10... axb4 {[%clk 0:02:53.4]} 11. axb4 {[%clk
0:03:00.5]} 11... h6 {[%clk 0:02:53.8]} 12. Nd2 {[%clk 0:02:58.6]} 12... c6
{[%clk 0:02:53.2]} 13. Bb2 {[%clk 0:02:55.8]} 13... Be6 {[%clk 0:02:53.9]} 14.
Ra1 {[%clk 0:02:53.9]} 14... Na6 {[%clk 0:02:53.1]} 15. b5 {[%clk 0:02:54.6]}
15... Nc5 {[%clk 0:02:50.8]} 16. Nb3 {[%clk 0:02:52]} 16... Rxa1 {[%clk
0:02:48.8]} 17. Bxa1 {[%clk 0:02:51.4]} 17... Nxb3 {[%clk 0:02:32]} 18. Qxb3
{[%clk 0:02:53.3]} 18... g5 {[%clk 0:02:33.5]} 19. bxc6 {[%clk 0:02:47.1]} 19...
bxc6 {[%clk 0:02:35.4]} 20. Qb6 {[%clk 0:02:48.2]} 20... Qh5 {[%clk 0:02:29.5]}
21. Qxc6 {[%clk 0:02:44.7]} 21... f4 {[%clk 0:02:22.8]} 22. Qxd6 {[%clk
0:02:39.5]} 22... Bh3 {[%clk 0:02:22]} 23. Nd5 {[%clk 0:02:15.3]} 23... Bxg2
{[%clk 0:02:14.5]} 24. Kxg2 {[%clk 0:02:05.6]} 24... Qxe2 {[%clk 0:00:30.9]} 25.
Bxe5 {[%clk 0:02:05.4]} 25... fxg3 {[%clk 0:00:09.6]} 26. Nxf6+ {[%clk
0:00:57.6]} 26... Bxf6 {[%clk 0:00:09.6]} 27. Bxf6 {[%clk 0:00:57]} 27... gxf2
{[%clk 0:00:09]} 28. Qd5+ {[%clk 0:00:31.7]} 28... Rf7 {[%clk 0:00:09.4]} 29.
Be5 {[%clk 0:00:27.6]} 29... Qg4+ {[%clk 0:00:09.5]} 30. Bg3 {[%clk 0:00:28.6]}
30... h5 {[%clk 0:00:10]} 31. Rxf2 {[%clk 0:00:25.1]} 1-0

[Event "*** Titled Tuesday Blitz"]
[Site "Chess.com"]
[Date "2018.11.06"]
[Round "6"]
[White "xavielhumilde_1999"]
[Black "danyuffa"]
[Result "0-1"]
[WhiteElo "2318"]
[BlackElo "2656"]
[TimeControl "180+2"]
[EndTime "14:20:27 PST"]
[Termination "danyuffa won by resignation"]

1. e4 {[%clk 0:02:59.5]} 1... Nf6 {[%clk 0:03:00.7]} 2. Nc3 {[%clk 0:02:57.8]}
2... d5 {[%clk 0:03:01.1]} 3. e5 {[%clk 0:02:58.2]} 3... Ne4 {[%clk 0:03:01.8]}
4. d3 {[%clk 0:02:57.9]} 4... Nxc3 {[%clk 0:03:01.7]} 5. bxc3 {[%clk 0:02:59.3]}
5... c5 {[%clk 0:03:02.8]} 6. d4 {[%clk 0:02:57.7]} 6... Nc6 {[%clk 0:03:03.3]}
7. Nf3 {[%clk 0:02:51]} 7... Bf5 {[%clk 0:03:01.5]} 8. Rb1 {[%clk 0:02:47.1]}
8... e6 {[%clk 0:02:54.6]} 9. Bd3 {[%clk 0:02:44.9]} 9... Bxd3 {[%clk
0:02:52.5]} 10. Qxd3 {[%clk 0:02:45.9]} 10... Qc7 {[%clk 0:02:48.6]} 11. Qb5
{[%clk 0:02:42.4]} 11... b6 {[%clk 0:02:40.6]} 12. O-O {[%clk 0:02:35.7]} 12...
Be7 {[%clk 0:02:37.5]} 13. c4 {[%clk 0:02:23.6]} 13... dxc4 {[%clk 0:02:25.8]}
14. Qxc4 {[%clk 0:02:23.4]} 14... cxd4 {[%clk 0:02:21.6]} 15. Nxd4 {[%clk
0:02:22.4]} 15... Rc8 {[%clk 0:02:21.6]} 16. Nb5 {[%clk 0:02:16.8]} 16... Qxe5
{[%clk 0:02:12.4]} 17. Bf4 {[%clk 0:02:17.9]} 17... Qc5 {[%clk 0:02:04.8]} 18.
Nc7+ {[%clk 0:02:15]} 18... Kf8 {[%clk 0:02:04.6]} 19. Qa6 {[%clk 0:02:15.7]}
19... Rd8 {[%clk 0:02:00.1]} 20. Rfd1 {[%clk 0:02:09.7]} 20... g5 {[%clk
0:01:54.2]} 21. Be3 {[%clk 0:02:09]} 21... Qe5 {[%clk 0:01:47.7]} 22. Rxd8+
{[%clk 0:02:02.7]} 22... Bxd8 {[%clk 0:01:40.6]} 23. Nb5 {[%clk 0:02:02.7]}
23... Kg7 {[%clk 0:01:37]} 24. Nxa7 {[%clk 0:02:00.1]} 24... Nxa7 {[%clk
0:01:20]} 25. Qxa7 {[%clk 0:01:58.7]} 25... Qe4 {[%clk 0:01:17.7]} 26. Bxb6
{[%clk 0:01:29.4]} 26... Bxb6 {[%clk 0:01:13.9]} 27. Qxb6 {[%clk 0:01:25.1]}
27... Qxc2 {[%clk 0:01:13.7]} 28. Qb2+ {[%clk 0:01:21.4]} 28... Qxb2 {[%clk
0:01:13.2]} 29. Rxb2 {[%clk 0:01:22.6]} 29... Ra8 {[%clk 0:01:14.3]} 30. f3
{[%clk 0:01:18.8]} 30... h5 {[%clk 0:01:12.8]} 31. Kf2 {[%clk 0:01:20]} 31...
Ra3 {[%clk 0:01:06.6]} 32. Re2 {[%clk 0:01:18.4]} 32... Kg6 {[%clk 0:01:04.2]}
33. g3 {[%clk 0:01:19.2]} 33... Kf5 {[%clk 0:01:00.5]} 34. Rb2 {[%clk
0:01:17.8]} 34... e5 {[%clk 0:00:57.6]} 35. h3 {[%clk 0:01:16.9]} 35... g4
{[%clk 0:00:55.1]} 36. hxg4+ {[%clk 0:01:12.6]} 36... hxg4 {[%clk 0:00:57]} 37.
fxg4+ {[%clk 0:01:11.9]} 37... Kxg4 {[%clk 0:00:56.3]} 38. Re2 {[%clk
0:01:10.6]} 38... f6 {[%clk 0:00:53.7]} 39. Re4+ {[%clk 0:01:11.7]} 39... Kf5
{[%clk 0:00:52.2]} 40. Re2 {[%clk 0:01:12.6]} 40... e4 {[%clk 0:00:47.7]} 41.
Kg2 {[%clk 0:01:10.3]} 41... Ke5 {[%clk 0:00:45.9]} 42. Rb2 {[%clk 0:01:04.9]}
42... f5 {[%clk 0:00:35.6]} 43. Re2 {[%clk 0:00:57]} 43... Kd4 {[%clk
0:00:30.7]} 0-1

[Event "*** Titled Tuesday Blitz"]
[Site "Chess.com"]
[Date "2018.11.06"]
[Round "6"]
[White "Polish_fighter3000"]
[Black "mouseWLZ"]
[Result "1-0"]
[WhiteElo "2971"]
[BlackElo "2260"]
[TimeControl "180+2"]
[EndTime "14:20:27 PST"]
[Termination "Polish_fighter3000 won by resignation"]

1. d4 {[%clk 0:03:01.9]} 1... Nf6 {[%clk 0:02:59.4]} 2. c4 {[%clk 0:03:03]} 2...
e6 {[%clk 0:03:00.6]} 3. g3 {[%clk 0:03:04.3]} 3... d5 {[%clk 0:03:01.2]} 4. Bg2
{[%clk 0:03:05]} 4... Bb4+ {[%clk 0:03:01.3]} 5. Nd2 {[%clk 0:03:05.7]} 5... O-O
{[%clk 0:03:01.6]} 6. Nf3 {[%clk 0:03:01.7]} 6... b6 {[%clk 0:03:02.5]} 7. a3
{[%clk 0:02:58.5]} 7... Be7 {[%clk 0:03:02.5]} 8. O-O {[%clk 0:02:58.7]} 8...
Bb7 {[%clk 0:03:03.7]} 9. cxd5 {[%clk 0:02:55.2]} 9... exd5 {[%clk 0:03:04.4]}
10. b4 {[%clk 0:02:55.4]} 10... c5 {[%clk 0:03:00.9]} 11. bxc5 {[%clk 0:02:55]}
11... bxc5 {[%clk 0:03:02.2]} 12. Rb1 {[%clk 0:02:56.6]} 12... Qc7 {[%clk
0:02:55.8]} 13. dxc5 {[%clk 0:02:56.4]} 13... Bxc5 {[%clk 0:02:56.4]} 14. Nb3
{[%clk 0:02:57.1]} 14... Bb6 {[%clk 0:02:55]} 15. Bf4 {[%clk 0:02:45.1]} 15...
Qe7 {[%clk 0:02:55.7]} 16. Nbd4 {[%clk 0:02:45.3]} 16... Qxa3 {[%clk 0:02:12.7]}
17. Nb5 {[%clk 0:02:34.9]} 17... Qa5 {[%clk 0:01:49.4]} 18. Nfd4 {[%clk
0:02:19]} 18... Nc6 {[%clk 0:01:24.7]} 19. Ra1 {[%clk 0:02:11.3]} 19... Qb4
{[%clk 0:01:25.7]} 20. Bd6 {[%clk 0:02:12.2]} 20... Qb2 {[%clk 0:01:00.8]} 21.
Ba3 {[%clk 0:02:11.5]} 21... Bxd4 {[%clk 0:00:45.3]} 22. Bxb2 {[%clk 0:02:08.9]}
22... Bxb2 {[%clk 0:00:47.2]} 23. Rb1 {[%clk 0:02:09.3]} 23... Be5 {[%clk
0:00:48.8]} 24. Nc7 {[%clk 0:02:03.7]} 24... Bxc7 {[%clk 0:00:45.8]} 25. Rxb7
{[%clk 0:02:03.3]} 25... Bb6 {[%clk 0:00:47.3]} 26. Bxd5 {[%clk 0:02:01]} 26...
Rad8 {[%clk 0:00:42.4]} 27. Bxc6 {[%clk 0:02:00.4]} 27... Rxd1 {[%clk
0:00:42.8]} 28. Rxd1 {[%clk 0:02:02.3]} 28... g6 {[%clk 0:00:29]} 29. e3 {[%clk
0:01:59.8]} 29... Rc8 {[%clk 0:00:28.3]} 30. Bd5 {[%clk 0:01:54.4]} 30... Nxd5
{[%clk 0:00:11.8]} 31. Rxd5 {[%clk 0:01:56.3]} 31... Kg7 {[%clk 0:00:11.5]} 32.
Rdd7 {[%clk 0:01:56.2]} 32... Rf8 {[%clk 0:00:12.4]} 33. g4 {[%clk 0:01:57]}
33... h6 {[%clk 0:00:13.3]} 34. Kg2 {[%clk 0:01:58]} 34... g5 {[%clk 0:00:14.2]}
35. h4 {[%clk 0:01:57.5]} 35... gxh4 {[%clk 0:00:11.6]} 36. Kh3 {[%clk
0:01:58.1]} 36... Kg6 {[%clk 0:00:06.2]} 37. Kxh4 {[%clk 0:01:56.5]} 37... Bd8+
{[%clk 0:00:06.6]} 38. Kh3 {[%clk 0:01:56.5]} 38... Bb6 {[%clk 0:00:08.2]} 39.
Kg3 {[%clk 0:01:51.9]} 39... Kg7 {[%clk 0:00:08.4]} 40. e4 {[%clk 0:01:52.4]}
40... Kf6 {[%clk 0:00:08.9]} 41. f4 {[%clk 0:01:51.9]} 41... Kg6 {[%clk
0:00:08.2]} 42. e5 {[%clk 0:01:49.7]} 42... Kg7 {[%clk 0:00:02.7]} 43. Kh4
{[%clk 0:01:43.9]} 43... Kg6 {[%clk 0:00:03.9]} 44. f5+ {[%clk 0:01:43.5]} 44...
Kg7 {[%clk 0:00:05.3]} 45. Kh5 {[%clk 0:01:44.2]} 45... Be3 {[%clk 0:00:05]} 46.
e6 {[%clk 0:01:37]} 46... Kf6 {[%clk 0:00:06.1]} 47. Rxf7+ {[%clk 0:01:37.8]}
47... Rxf7 {[%clk 0:00:07.3]} 48. Rxf7+ {[%clk 0:01:39.4]} 1-0